bitfinex/quotes_SOLUSD_20260309
["timestamp","ask_amount","ask_price","bid_price","bid_amount"]
[1773082871608,0.03573414,85.358,85.319,1.19340628]
[1773082872111,11.71522627,85.359,85.319,1.19340628]
[1773082872313,11.74907616,85.369,85.319,1.19340628]
[1773082872497,0.03522219,85.368,85.319,1.19340628]
[1773082872810,0.03522219,85.368,85.301,52.00154657]
[1773082872811,0.03522219,85.368,85.321,1.19340628]
[1773082873019,0.03522219,85.359,85.321,1.19340628]
[1773082874815,0.03420082,85.369,85.321,1.19340628]
[1773082875613,0.03370025,85.368,85.323,1.19340628]
[1773082876625,0.03370025,85.368,85.325,1.19340628]
[1773082877512,0.03370025,85.368,85.309,54.09785214]
[1773082877513,0.032743,85.359,85.311,1.19340628]
[1773082877703,0.032743,85.339,85.304,1.19340628]
[1773082878623,0.032743,85.339,85.306,1.19340628]
[1773082879631,11.71550077,85.357,85.306,1.19340628]
[1773082879826,11.74729771,85.357,85.306,1.19340628]
[1773082880030,0.03179694,85.356,85.306,1.19340628]
[1773082880925,0.03179694,85.356,85.308,1.19340628]
[1773082882024,0.03179694,85.356,85.31,1.19340628]
[1773082882225,29.28806569,85.359,85.31,1.19340628]
[1773082882529,0.03041936,85.358,85.31,1.19340628]
[1773082884237,0.03041936,85.358,85.312,1.19340628]
[1773082885536,0.03041936,85.358,85.313,11.72154302]
[1773082885724,0.03041936,85.358,85.314,1.19340628]
[1773082886221,0.02907745,85.349,85.314,1.19340628]
[1773082887123,0.02823886,85.339,85.299,1.19340628]
[1773082887735,0.02823886,85.338,85.301,1.19340628]
[1773082890726,0.02823886,85.338,85.303,1.19340628]
[1773082891532,0.0265855,85.348,85.303,1.19340628]
[1773082894549,0.0265855,85.348,85.305,1.19206252]
[1773082897638,0.0265855,85.348,85.307,1.19206252]
[1773082898871,4.21950592,85.32,85.281,4.88589654]
[1773082899036,0.02353256,85.32,85.282,1.19206252]
[1773082899236,0.02317243,85.338,85.282,1.19206252]
[1773082899462,0.02317243,85.348,85.286,4.82477569]
[1773082899761,0.02317243,85.348,85.293,3.69383402]
[1773082899955,0.02317243,85.348,85.294,1.19206252]
[1773082900462,0.02280232,85.354,85.303,1.19206252]
[1773082901069,0.02280232,85.352,85.303,1.19206252]
[1773082901854,0.02280232,85.352,85.304,11.7227797]
[1773082902156,0.022094,85.349,85.305,1.19206252]
[1773082904060,0.02140104,85.348,85.305,1.19206252]
[1773082904357,0.02140104,85.348,85.307,1.19327335]
[1773082905841,0.28432314,85.348,85.307,1.19327335]
[1773082906063,0.02072535,85.338,85.293,1.19327335]
[1773082906247,0.02072535,85.329,85.293,1.19327335]
[1773082907646,0.02072535,85.329,85.285,1.19327335]
[1773082908041,0.02006774,85.328,85.285,1.19327335]
[1773082909052,0.02006774,85.328,85.287,1.19327335]
[1773082912870,0.02006774,85.328,85.289,1.19327335]
[1773082915459,0.02006774,85.328,85.291,1.19327335]
[1773082920770,4.21950592,85.31,85.278,1.19327335]
[1773082920946,4.21950592,85.31,85.272,1.19327335]
[1773082921145,0.28432314,85.319,85.272,1.19327335]
[1773082921347,4.21950592,85.31,85.272,1.19327335]
[1773082922759,41.02732418,85.309,85.273,1.19327335]
[1773082925669,41.02732418,85.309,85.275,1.19206252]
[1773082926870,11.72209262,85.309,85.275,1.19206252]
[1773082927573,4.21950592,85.32,85.277,1.19206252]
[1773082928275,4.21950592,85.32,85.268,1.19206252]
[1773082928276,4.21950592,85.31,85.268,1.19206252]
[1773082929358,0.28432314,85.318,85.27,1.19206252]
[1773082929670,4.21950592,85.31,85.27,1.19206252]
[1773082930557,0.28432314,85.318,85.27,1.19206252]
[1773082931061,4.21950592,85.31,85.27,1.19206252]
[1773082931871,0.28432314,85.316,85.272,1.19206252]
[1773082933781,0.28432314,85.314,85.274,1.19206252]
[1773082934164,4.21950592,85.31,85.274,1.19206252]
[1773082936672,41.02732418,85.309,85.274,1.19206252]
[1773082937677,4.21950592,85.3,85.266,1.19206252]
[1773082937981,4.21950592,85.3,85.249,1.19206252]
[1773082938881,41.03213401,85.299,85.251,1.19206252]
[1773082939275,0.96959049,85.35,85.26,1.13598327]
[1773082939476,0.96959049,85.329,85.271,1.13598327]
[1773082939784,0.96959049,85.329,85.274,1.13598327]
[1773082940664,0.97010302,85.327,85.276,1.13598327]
[1773082941387,11.71948246,85.328,85.276,1.13598327]
[1773082941563,0.9706085,85.326,85.276,1.13598327]
[1773082941768,0.9706085,85.319,85.276,1.13598327]
[1773082942694,0.97112918,85.317,85.278,1.13598327]
[1773082944769,29.29765305,85.332,85.28,1.13598327]
[1773082944975,0.97213694,85.338,85.283,1.13598327]
[1773082945490,0.97213694,85.338,85.284,4.82477569]
[1773082945688,0.97213694,85.338,85.291,1.13598327]
[1773082946301,0.97309887,85.356,85.31,1.13598327]
[1773082946600,0.97309887,85.368,85.31,1.13598327]
[1773082946766,0.97309887,85.368,85.314,3.69383402]
[1773082946767,11.71489378,85.362,85.314,3.69383402]
[1773082946971,11.71489378,85.362,85.315,1.13598327]
[1773082947374,11.71535937,85.359,85.315,1.13598327]
[1773082947690,11.7143413,85.366,85.321,1.13598327]
[1773082948072,11.7147448,85.363,85.321,1.13598327]
[1773082948781,0.97309887,85.368,85.321,1.13598327]
[1773082949290,11.71589589,85.355,85.323,1.13598327]
[1773082949496,0.97450536,85.352,85.323,1.13598327]
[1773082949679,0.97450536,85.352,85.317,11.72092226]
[1773082950596,1.13277354,85.329,85.263,75.19527637]
[1773082950803,1.13277354,85.329,85.264,0.28432314]
[1773082951098,1.13277354,85.329,85.267,4.82477569]
[1773082951298,1.13277354,85.327,85.27,0.28432314]
[1773082951605,1.13277354,85.327,85.27,1.13598327]
[1773082951908,1.13277354,85.319,85.27,1.13598327]
[1773082952085,1.13277354,85.319,85.272,1.13598327]
[1773082953303,1.14022898,85.317,85.274,1.11918241]
[1773082955406,11.72113085,85.316,85.276,1.11918241]
[1773082955597,12.86135983,85.316,85.276,1.11918241]
[1773082955794,1.14022898,85.316,85.276,1.11918241]
[1773082957407,12.86135983,85.316,85.278,1.11918241]
[1773082957988,1.14022898,85.316,85.278,1.11918241]
[1773082959902,1.14022898,85.315,85.28,1.11918241]
[1773082962917,1.14022898,85.313,85.282,1.11918241]
[1773082963119,1.14022898,85.313,85.269,29.31874442]
[1773082963120,1.14022898,85.313,85.276,12.84569364]
[1773082963292,1.14022898,85.313,85.277,1.11918241]
[1773082964307,210.25451,85.735,85.279,1.11918241]
[1773082964308,1.14022898,85.328,85.279,1.11918241]
[1773082965913,1.14022898,85.328,85.278,41.04223831]
[1773082965914,1.11117734,85.326,85.281,1.12071476]
[1773082968216,1.11117734,85.319,85.281,1.12071476]
[1773082968516,1.11117734,85.319,85.283,1.12071476]
[1773082970739,1.11117734,85.317,85.285,1.12071476]
[1773082972732,1.11117734,85.315,85.286,11.72525385]
[1773082975632,1.11117734,85.313,85.286,11.72525385]
[1773082977044,1.11117734,85.311,85.286,1.12071476]
[1773082977828,1.39550048,85.333,85.286,1.12071476]
[1773082978020,1.11117734,85.328,85.286,1.12071476]
[1773082978215,0.28432314,85.327,85.286,1.12071476]
[1773082978432,1.39550048,85.326,85.286,1.12071476]
[1773082978637,1.25333891,85.324,85.286,1.12071476]
[1773082978817,1.11117734,85.321,85.288,1.12071476]
[1773082979136,1.11117734,85.321,85.283,11.72558437]
[1773082979336,1.11117734,85.321,85.282,1.12071476]
[1773082979540,1.11117734,85.321,85.237,46.92771382]
[1773082979541,1.11117734,85.309,85.27,1.12071476]
[1773082981052,1.11117734,85.307,85.272,1.12071476]
[1773082982650,1.11117734,85.319,85.272,1.12071476]
[1773082982953,1.11117734,85.319,85.275,1.12071476]
[1773082983124,12.83189794,85.319,85.277,1.12071476]
[1773082984245,1.18168362,85.318,85.277,1.12071476]
[1773082986850,1.18168362,85.318,85.261,5.10909883]
[1773082986851,1.18168362,85.316,85.279,1.12531057]
[1773082988854,1.18168362,85.314,85.278,1.12531057]
[1773082990657,1.18168362,85.312,85.28,1.12531057]
[1773082993658,1.18168362,85.31,85.282,1.12531057]
[1773082994244,1.18168362,85.31,85.281,11.72594129]
[1773082994845,5.40311582,85.31,85.272,1.12531057]
[1773082995049,1.18168362,85.309,85.272,1.12531057]
[1773082997863,1.18168362,85.307,85.273,1.12531057]
[1773082999849,1.18168362,85.305,85.275,1.12531057]
[1773083001162,58.59136935,85.337,85.275,1.12531057]
[1773083001163,1.18168362,85.335,85.275,1.12531057]
[1773083001569,1.46600676,85.335,85.275,1.12531057]
[1773083002073,1.46600676,85.333,85.277,1.12531057]
[1773083003671,1.18168362,85.329,85.277,1.12531057]
[1773083004272,1.18168362,85.319,85.279,1.12531057]
[1773083005667,1.18168362,85.327,85.279,1.12531057]
[1773083008673,4.2214322,85.33,85.266,57.79168616]
[1773083008674,1.18168362,85.325,85.281,1.12531057]
[1773083008968,1.18168362,85.319,85.281,1.12531057]
[1773083011364,1.18168362,85.317,85.283,1.12531057]
[1773083013459,1.18168362,85.317,85.266,3.69383402]
[1773083013460,11.72113085,85.316,85.285,1.18369409]
[1773083014068,1.14874574,85.315,85.285,1.18369409]
[1773083015357,1.14874574,85.321,85.287,1.18369409]
[1773083015972,1.14874574,85.339,85.291,1.18369409]
[1773083019678,1.14874574,85.337,85.293,1.18369409]
[1773083023875,1.14874574,85.335,85.295,1.18369409]
[1773083026785,1.12564313,85.333,85.297,1.23017011]
[1773083029784,1.12564313,85.331,85.299,1.23017011]
[1773083031686,1.12564313,85.329,85.301,1.23017011]
[1773083037073,1.12564313,85.327,85.301,1.23017011]
[1773083037276,1.12564313,85.327,85.284,3.69383402]
[1773083038398,1.12564313,85.327,85.281,41.04079453]
[1773083039289,1.12564313,85.325,85.284,1.23017011]
[1773083041001,1.12564313,85.325,85.261,5.10909883]
[1773083041002,1.12564313,85.319,85.274,1.23017011]
[1773083041490,1.12564313,85.317,85.276,1.23017011]
[1773083043487,1.23155317,85.315,85.278,1.15388101]
[1773083046220,1.23155317,85.313,85.28,1.15388101]
[1773083046589,1.23155317,85.324,85.28,1.15388101]
[1773083049390,1.23155317,85.322,85.282,1.15388101]
[1773083050512,11.72044397,85.321,85.283,11.72566631]
[1773083050704,1.23155317,85.32,85.284,1.15388101]
[1773083053605,11.72071871,85.319,85.286,1.15388101]
[1773083053813,12.95227188,85.319,85.286,1.15388101]
[1773083054008,1.23155317,85.318,85.286,1.15388101]
[1773083056018,1.23155317,85.316,85.288,1.15388101]
[1773083057817,1.23155317,85.316,85.29,1.15388101]
[1773083058513,1.23155317,85.356,85.29,1.15388101]
[1773083058714,1.23155317,85.349,85.29,1.15388101]
[1773083059322,1.37371474,85.349,85.29,1.15388101]
[1773083059617,1.51587631,85.349,85.29,1.15388101]
[1773083061319,1.51587631,85.347,85.292,1.15388101]
[1773083061499,1.23155317,85.347,85.292,1.15388101]
[1773083061706,1.51587631,85.347,85.292,1.15388101]
[1773083070423,1.23155317,85.345,85.294,1.15388101]
[1773083070626,1.51587631,85.345,85.294,1.15388101]
[1773083072033,1.23155317,85.339,85.294,1.15388101]
[1773083073633,1.13246785,85.337,85.296,1.21066219]
[1773083077739,41.0143433,85.336,85.297,11.72374174]
[1773083077917,1.13246785,85.335,85.298,1.21066219]
[1773083080749,1.13246785,85.333,85.3,1.21066219]
[1773083083544,1.13246785,85.336,85.302,1.21066219]
[1773083083862,29.29216381,85.348,85.302,1.21066219]
[1773083083863,1.13246785,85.347,85.302,1.21066219]
[1773083085455,1.13246785,85.327,85.289,1.21066219]
[1773083085752,1.13246785,85.327,85.29,11.72470395]
[1773083085954,1.13246785,85.327,85.29,12.93536614]
[1773083088944,1.18384007,85.325,85.291,11.72456648]
[1773083090255,1.18384007,85.325,85.292,1.15284756]
[1773083092445,1.18384007,85.323,85.293,12.87713911]
[1773083092647,1.18384007,85.323,85.294,1.15284756]
[1773083095736,1.18384007,85.321,85.294,1.15284756]
[1773083097443,1.18384007,85.321,85.295,11.72401664]
[1773083097645,1.18384007,85.321,85.296,1.15284756]
[1773083098049,1.18384007,85.319,85.296,1.15284756]
[1773083099474,1.18384007,85.317,85.282,1.15284756]
[1773083100275,1.18384007,85.309,85.272,1.15284756]
[1773083100869,1.18384007,85.299,85.263,11.7283744]
[1773083101046,1.18384007,85.299,85.263,12.88122196]
[1773083101665,1.18384007,85.297,85.263,12.88122196]
[1773083101848,1.18384007,85.297,85.264,1.15284756]
[1773083104566,1.18384007,85.297,85.232,4.82477569]
[1773083104567,1.21661367,85.289,85.244,1.21568893]
[1773083104770,1.21661367,85.269,85.234,1.21568893]
[1773083104971,1.21661367,85.269,85.227,1.21568893]
[1773083104972,1.50093681,85.269,85.227,1.21568893]
[1773083105173,0.28432314,85.28,85.227,1.21568893]
[1773083105174,1.21661367,85.259,85.227,1.21568893]
[1773083105568,1.21661367,85.259,85.231,11.73282021]
[1773083105773,1.21661367,85.259,85.232,1.21568893]
[1773083108280,1.50093681,85.277,85.234,1.21568893]
[1773083109577,1.21661367,85.277,85.234,1.21568893]
[1773083111072,12.94324249,85.276,85.236,1.21568893]
[1773083111267,1.21661367,85.275,85.236,1.21568893]
[1773083111467,1.21661367,85.288,85.236,1.21568893]
[1773083115471,1.21661367,85.286,85.24,1.21568893]
[1773083118581,1.21661367,85.284,85.242,1.21568893]
[1773083119693,1.50093681,85.284,85.242,1.21568893]
[1773083119897,1.21661367,85.279,85.242,1.21568893]
[1773083120684,1.21661367,85.277,85.244,1.21568893]
[1773083122809,1.21661367,85.275,85.246,1.21568893]
[1773083124506,1.21661367,85.275,85.241,11.73141033]
[1773083124803,1.21661367,85.267,85.233,11.73245706]
[1773083125398,1.21661367,85.267,85.233,12.94814599]
[1773083125899,1.21661367,85.265,85.234,1.21568893]
[1773083126399,1.21661367,85.265,85.23,22.76758134]
[1773083126584,1.21661367,85.265,85.231,11.73282021]
[1773083127701,1.21661367,85.265,85.231,12.94850914]
[1773083128502,11.72827922,85.264,85.232,1.21568893]
[1773083128703,1.21661367,85.263,85.232,1.21568893]
[1773083130182,1.21661367,85.259,85.23,22.76758134]
[1773083130381,1.21661367,85.259,85.23,21.79465612]
[1773083130594,1.21661367,85.257,85.23,21.79465612]
[1773083133304,1.11062493,85.259,85.232,1.1440189]
[1773083136307,11.7291046,85.258,85.232,1.1440189]
[1773083136607,1.11062493,85.257,85.232,1.1440189]
[1773083137803,1.11062493,85.257,85.234,1.1440189]
[1773083141213,11.72937975,85.256,85.234,1.1440189]
[1773083141408,12.84000468,85.256,85.234,1.1440189]
[1773083141713,1.11062493,85.255,85.234,1.1440189]
[1773083142214,1.11062493,85.255,85.236,1.1440189]
[1773083143997,11.72965491,85.254,85.236,1.1440189]
[1773083144199,12.84027984,85.254,85.236,1.1440189]
[1773083145102,1.11062493,85.253,85.236,1.1440189]
[1773083146913,11.72993008,85.252,85.236,1.1440189]
[1773083147112,1.17066625,85.251,85.236,1.1440189]
[1773083147633,1.17066625,85.251,85.231,1.11416109]
[1773083148207,29.31899868,85.269,85.231,11.73282021]
[1773083148423,1.17066625,85.279,85.232,1.11416109]
[1773083148912,11.7263538,85.278,85.233,41.06390716]
[1773083149112,1.17066625,85.277,85.234,1.11416109]
[1773083150430,1.45498939,85.277,85.234,1.11416109]
[1773083151634,1.45498939,85.275,85.236,1.11416109]
[1773083152712,1.17066625,85.275,85.236,1.11416109]
[1773083153747,1.45498939,85.273,85.232,1.11416109]
[1773083155937,1.17066625,85.259,85.23,21.79465612]
[1773083156126,1.17066625,85.259,85.231,1.11416109]
[1773083157220,1.17066625,85.259,85.232,1.11416109]
[1773083157423,1.17066625,85.259,85.23,21.79465612]
[1773083157728,1.17066625,85.257,85.232,1.11416109]
[1773083157927,1.17066625,85.257,85.23,21.79465612]
[1773083158528,1.17066625,85.257,85.23,22.90881721]
[1773083159416,1.45498939,85.257,85.205,1.11416109]
[1773083159733,0.28432314,85.269,85.15,46.97582597]
[1773083159734,1.45498939,85.237,85.186,29.34745372]
[1773083159918,1.45498939,85.237,85.194,1.11416109]
[1773083160521,4.22690206,85.23,85.194,1.11416109]
[1773083160723,1.17066625,85.227,85.194,1.11416109]
[1773083160917,1.17066625,85.227,85.199,1.11416109]
[1773083161337,1.17066625,85.227,85.202,1.11416109]
[1773083162455,11.7332332,85.228,85.17,0.2]
[1773083162456,1.13274933,85.219,85.17,0.2]
[1773083162659,0.46636814,85.176,85.14,1e-08]
[1773083162872,1.17066625,85.169,85.14,1e-08]
[1773083163733,1.45498939,85.169,85.14,1e-08]
[1773083165040,1.10795343,85.167,85.14,1e-08]
[1773083165760,1.10795343,85.159,85.14,1e-08]
[1773083166940,5.33485549,85.14,85.103,41.12663478]
[1773083167148,1.10795343,85.14,85.103,41.12663478]
[1773083167848,1.10795343,85.139,85.103,41.12663478]
[1773083168050,1.10795343,85.128,85.102,7.74945022]
[1773083168345,1.10795343,85.136,85.081,29.38348346]
[1773083168642,1.10795343,85.148,85.101,11.75074323]
[1773083168842,1.10795343,85.146,85.104,1.08732638]
[1773083171759,1.10795343,85.139,85.106,1.08732638]
[1773083173044,11.74467085,85.145,85.106,1.08732638]
[1773083173739,1.10795343,85.144,85.108,1.08732638]
[1773083175223,1.10795343,85.139,85.108,1.08732638]
[1773083175633,1.10795343,85.144,85.109,41.12373543]
[1773083175849,1.10795343,85.164,85.11,1.08732638]
[1773083176548,1.10795343,85.159,85.11,1.08732638]
[1773083177943,1.10795343,85.157,85.112,1.08732638]
[1773083179930,1.10795343,85.155,85.114,1.08732638]
[1773083182968,1.10795343,85.153,85.116,1.08732638]
[1773083185748,4.22690206,85.16,85.117,11.74853437]
[1773083185749,1.10795343,85.151,85.117,11.74853437]
[1773083186355,1.10795343,85.151,85.118,1.08732638]
[1773083186739,1.10795343,85.149,85.119,11.74825832]
[1773083188255,1.10795343,85.149,85.119,12.8355847]
[1773083189545,1.10795343,85.147,85.12,1.08732638]
[1773083190657,19.8952422,85.161,85.12,1.08732638]
[1773083190658,1.10795343,85.16,85.12,1.08732638]
[1773083191038,19.8952422,85.161,85.12,1.08732638]
[1773083191455,1.10795343,85.159,85.12,1.08732638]
[1773083191644,1.10795343,85.157,85.122,1.08732638]
[1773083192846,1.10795343,85.149,85.122,1.08732638]
[1773083193054,1.10795343,85.149,85.092,3.69383402]
[1773083193055,1.10795343,85.139,85.101,1.08732638]
[1773083193256,1.10795343,85.139,85.096,11.7513349]
[1773083193257,1.08314799,85.127,85.096,11.7513349]
[1773083193758,0.28432314,85.128,85.096,11.7513349]
[1773083193759,1.08314799,85.125,85.096,11.7513349]
[1773083193960,1.08314799,85.147,85.102,1.08127617]
[1773083194743,1.08314799,85.139,85.102,1.08127617]
[1773083196162,1.08314799,85.139,85.104,1.08127617]
[1773083196872,11.74563649,85.138,85.104,1.08127617]
[1773083197245,12.82878448,85.138,85.104,1.08127617]
[1773083197642,1.08314799,85.137,85.104,1.08127617]
[1773083199865,1.08314799,85.137,85.106,1.08127617]
[1773083200159,1.08314799,85.151,85.106,1.08127617]
[1773083200770,14.83267598,85.16,85.11,1.08127617]
[1773083201851,14.83267598,85.16,85.108,3.69383402]
[1773083201852,14.83267598,85.16,85.12,1.08127617]
[1773083203359,1.08314799,85.159,85.12,1.08127617]
[1773083204778,1.08314799,85.159,85.121,41.11793799]
[1773083204955,1.08314799,85.159,85.122,1.08127617]
[1773083205571,14.83267598,85.16,85.122,1.08127617]
[1773083206470,1.08314799,85.171,85.123,1.08127617]
[1773083206674,1.08314799,85.169,85.123,1.08127617]
[1773083206871,11.74122343,85.17,85.119,4.82477569]
[1773083206872,1.08314799,85.167,85.125,1.08127617]
[1773083209483,1.08314799,85.165,85.127,1.08127617]
[1773083211499,1.08314799,85.165,85.128,41.11455689]
[1773083211700,1.08314799,85.165,85.129,1.08127617]
[1773083212996,1.12899391,85.164,85.129,1.08127617]
[1773083215594,0.28432314,85.179,85.12,54.09785214]
[1773083215595,1.12899391,85.162,85.131,1.09075458]
[1773083219015,1.12899391,85.162,85.133,1.09075458]
[1773083221323,1.12899391,85.162,85.134,41.11165926]
[1773083221803,1.12899391,85.162,85.135,1.09075458]
[1773083224816,1.07602337,85.177,85.137,1.15518405]
[1773083227436,1.07602337,85.175,85.139,1.15518405]
[1773083227614,1.07602337,85.194,85.139,1.15518405]
[1773083229539,1.07602337,85.188,85.141,1.15518405]
[1773083231645,1.07602337,85.186,85.143,1.15518405]
[1773083234039,1.07602337,85.184,85.145,1.15518405]
[1773083235740,1.07602337,85.184,85.144,11.74480879]
[1773083236126,1.07602337,85.184,85.134,54.09785214]
[1773083236127,1.07602337,85.169,85.136,11.74591242]
[1773083236622,1.07602337,85.169,85.137,1.15518405]
[1773083237817,1.07602337,85.167,85.138,11.74563649]
[1773083238020,1.07602337,85.167,85.138,12.90082054]
[1773083238414,1.07602337,85.167,85.139,1.15518405]
[1773083240132,1.07602337,85.167,85.141,1.15518405]
[1773083240632,1.07602337,85.165,85.141,1.15518405]
[1773083242638,1.07602337,85.165,85.142,11.74508468]
[1773083242848,1.07602337,85.209,85.143,1.15518405]
[1773083243039,1.07602337,85.207,85.143,1.15518405]
[1773083244344,1.07602337,85.198,85.152,1.15518405]
[1773083244523,1.07602337,85.214,85.16,1.15518405]
[1773083244847,1.07602337,85.212,85.162,1.15518405]
[1773083245940,1.07602337,85.21,85.164,1.15518405]
[1773083248445,1.07602337,85.208,85.166,1.15518405]
[1773083251840,1.07602337,85.206,85.168,1.15518405]
[1773083255068,1.11271713,85.204,85.17,1.1701454]
[1773083258154,1.11271713,85.202,85.172,1.1701454]
[1773083259557,1.11271713,85.214,85.172,1.1701454]
[1773083260941,1.11271713,85.214,85.174,1.1701454]
[1773083261249,1.11271713,85.214,85.175,1.1701454]
[1773083261858,1.11271713,85.213,85.177,1.1701454]
[1773083262856,1.11271713,85.213,85.178,11.74012068]
[1773083263038,1.11271713,85.227,85.179,1.1701454]
[1773083263343,1.11271713,85.227,85.18,54.09785214]
[1773083263543,1.11271713,85.227,85.182,1.1701454]
[1773083265560,1.11271713,85.227,85.184,1.1701454]
[1773083266363,1.11271713,85.225,85.184,1.1701454]
[1773083267040,1.11271713,85.225,85.185,1.1701454]
[1773083268142,1.11271713,85.223,85.187,1.1701454]
[1773083273365,1.12933453,85.221,85.189,1.14964888]
[1773083274058,12.86243007,85.229,85.189,1.14964888]
[1773083274445,1.12933453,85.228,85.189,1.14964888]
[1773083274645,1.12933453,85.228,85.188,41.0855989]
[1773083274646,46.89608851,85.295,85.202,1.14964888]
[1773083274843,0.28432314,85.269,85.202,1.14964888]
[1773083275252,4.22985144,85.27,85.202,1.14964888]
[1773083275449,29.32074149,85.264,85.204,1.14964888]
[1773083275653,0.28432314,85.263,85.204,1.14964888]
[1773083276058,0.28432314,85.263,85.211,1.14964888]
[1773083276759,1.12933453,85.259,85.211,1.14964888]
[1773083277561,1.12933453,85.257,85.213,1.14964888]
[1773083280066,1.12933453,85.255,85.215,1.14964888]
[1773083281972,1.12933453,85.253,85.217,1.14964888]
[1773083282169,1.12933453,85.249,85.21,11.73561073]
[1773083282549,1.12933453,85.239,85.21,11.73561073]
[1773083284474,1.1252436,85.237,85.206,11.7362627]
[1773083285671,1.1252436,85.237,85.184,54.09785214]
[1773083285672,1.1252436,85.219,85.181,1.08799528]
[1773083286063,1.1252436,85.228,85.181,1.08799528]
[1773083286371,41.06246186,85.236,85.18,41.08945761]
[1773083286372,1.1252436,85.235,85.182,4.82477569]
[1773083286667,1.1252436,85.235,85.191,1.08799528]
[1773083287670,1.1252436,85.235,85.193,1.08799528]
[1773083287860,1.1252436,85.233,85.193,1.08799528]
[1773083290392,1.1252436,85.231,85.195,1.08799528]
[1773083291490,1.1252436,85.231,85.197,1.08799528]
[1773083291658,1.1252436,85.236,85.197,1.08799528]
[1773083291861,11.73208792,85.237,85.197,1.08799528]
[1773083292561,1.1252436,85.236,85.197,1.08799528]
[1773083292786,1.1252436,85.242,85.197,1.08799528]
[1773083294288,1.1252436,85.24,85.199,1.08799528]
[1773083294662,1.1252436,85.238,85.194,11.73788854]
[1773083294883,1.1252436,85.237,85.194,11.73788854]
[1773083295780,1.1252436,85.235,85.194,11.73788854]
[1773083297482,1.1252436,85.235,85.195,1.08799528]
[1773083297683,1.1252436,85.255,85.201,1.08799528]
[1773083297984,1.1252436,85.253,85.203,1.08799528]
[1773083300478,1.1252436,85.251,85.205,1.08799528]
[1773083300697,1.1252436,85.239,85.2,0.5]
[1773083300864,0.28432314,85.238,85.192,1.08799528]
[1773083301065,1.1252436,85.237,85.192,1.08799528]
[1773083301462,1.40956674,85.229,85.192,12.8261042]
[1773083301666,1.1252436,85.228,85.192,12.8261042]
[1773083302886,1.1252436,85.226,85.192,12.8261042]
[1773083303978,1.40956674,85.219,85.16,1.08799528]
[1773083304281,1.1252436,85.217,85.16,1.08799528]
[1773083304978,1.1252436,85.215,85.162,1.08799528]
[1773083306776,1.1252436,85.222,85.17,1.08799528]
[1773083307477,1.1252436,85.222,85.172,1.08799528]
[1773083307678,1.1252436,85.22,85.172,1.08799528]
[1773083309294,1.1252436,85.22,85.174,1.08799528]
[1773083310896,1.1252436,85.218,85.176,1.08799528]
[1773083312480,1.1252436,85.226,85.181,1.08799528]
[1773083312676,11.73364623,85.225,85.182,1.08799528]
[1773083313475,1.1252436,85.226,85.184,1.09791221]
[1773083313799,11.73364623,85.225,85.184,1.09791221]
[1773083318095,11.73364623,85.225,85.186,1.09791221]
[1773083318597,1.1252436,85.226,85.186,1.09791221]
[1773083319896,1.06702281,85.225,85.188,1.09791221]
[1773083321990,1.06702281,85.223,85.19,1.09791221]
[1773083323388,4.22985144,85.25,85.189,41.08511661]
[1773083323389,1.06702281,85.248,85.201,1.09791221]
[1773083323587,1.06702281,85.248,85.203,1.09791221]
[1773083323981,1.06702281,85.248,85.208,4.82477569]
[1773083324287,1.06702281,85.248,85.204,41.07788366]
[1773083324288,1.06702281,85.257,85.211,1.09791221]
[1773083326704,1.06702281,85.257,85.212,4.82477569]
[1773083326888,1.06702281,85.264,85.222,1.09791221]
[1773083327086,1.16702281,85.26,85.222,1.09791221]
[1773083328195,1.11027827,85.259,85.216,1.03413032]
[1773083329901,1.11027827,85.257,85.218,1.03413032]
[1773083332105,1.11027827,85.255,85.22,1.03413032]
[1773083333908,1.11027827,85.253,85.214,1.03413032]
[1773083336610,1.11027827,85.251,85.216,1.03413032]
[1773083339923,1.11027827,85.249,85.218,1.03413032]
[1773083341913,1.11027827,85.249,85.213,11.73519188]
[1773083342219,1.11027827,85.247,85.214,1.03413032]
[1773083344615,1.06007074,85.245,85.216,1.01351227]
[1773083345825,1.06007074,85.245,85.209,11.73571394]
[1773083346200,1.06007074,85.245,85.199,11.73722696]
[1773083346201,0.28432314,85.239,85.199,11.73722696]
[1773083346411,1.06007074,85.237,85.2,1.01351227]
[1773083347814,1.06007074,85.235,85.202,1.01351227]
[1773083350112,1.06007074,85.233,85.203,11.73667593]
[1773083350323,1.06007074,85.233,85.204,1.01351227]
[1773083350829,12.79188846,85.239,85.204,1.01351227]
[1773083351024,1.06007074,85.258,85.204,1.01351227]
[1773083351242,1.06007074,85.257,85.204,1.01351227]
[1773083352327,1.06007074,85.255,85.206,1.01351227]
[1773083352652,0.1,85.26,85.21,3.69383402]
[1773083352835,1.06007074,85.263,85.21,1.01351227]
[1773083353130,1.06007074,85.263,85.212,1.01351227]
[1773083353926,1.06007074,85.261,85.214,1.01351227]
[1773083357115,1.06007074,85.259,85.216,1.01351227]
[1773083359732,1.06007074,85.257,85.218,1.01351227]
[1773083362030,1.06007074,85.255,85.22,1.01351227]
[1773083366241,1.06007074,85.253,85.222,1.01351227]
[1773083369139,1.06007074,85.253,85.223,11.73392159]
[1773083369346,1.06007074,85.253,85.224,1.01351227]
[1773083371042,1.06007074,85.282,85.225,4.82477569]